bitfinex/quotes_ETHUSD_20220227
["timestamp","ask_amount","ask_price","bid_price","bid_amount"]
[1645968135770,0.89415246,2819.4,2818.9,10.55495283]
[1645968135970,0.89415246,2819.5,2819.1,11.95548821]
[1645968136468,0.89415246,2819.6,2819.1,11.95548821]
[1645968136670,0.89415246,2819.7,2819.1,11.95548821]
[1645968136868,0.00244189,2819.4,2819.1,11.95548821]
[1645968137270,0.00244189,2819.4,2819.1,12.84250821]
[1645968137675,0.89415246,2819.7,2819.2,3.5]
[1645968137871,0.89415246,2819.8,2819.2,3.5]
[1645968138125,0.00637452,2819.4,2819.2,3.5]
[1645968138731,0.00637452,2819.4,2819.3,1.23999394]
[1645968138933,0.9006637,2819.4,2819.3,3.5]
[1645968139230,0.90703815,2819.4,2819.3,3.5]
[1645968140034,0.9006637,2819.4,2819.3,3.5]
[1645968140235,0.9006637,2819.4,2819.3,14.05495283]
[1645968140436,0.00096,2819.8,2819.5,1.09606877]
[1645968140635,0.89973311,2819.9,2819.4,3.5]
[1645968140942,0.89973311,2819.8,2819.4,14.27]
[1645968141135,0.89973311,2819.7,2819.4,14.27]
[1645968141338,0.89973311,2819.6,2819.4,14.27]
[1645968141535,0.89973311,2819.5,2819.4,10.77]
[1645968141735,0.89973311,2819.5,2819.4,11.9169313]
[1645968141989,0.89973311,2819.6,2819.4,11.9169313]
[1645968142190,0.89973311,2819.6,2819.5,14.27]
[1645968142490,0.00096,2820.2,2819.6,18.1697]
[1645968142689,0.00096,2820.2,2819.7,3.5]
[1645968142891,0.00096,2820.3,2819.7,3.5]
[1645968143089,0.89415246,2820.5,2819.7,14.27]
[1645968143297,0.00096,2820.4,2819.7,3.5]
[1645968143500,0.00096,2820.5,2819.7,3.5]
[1645968143698,0.66817462,2820.4,2819.7,3.5]
[1645968144097,0.00625392,2820.2,2819.7,3.5]
[1645968144498,0.67442854,2820.2,2819.7,3.5]
[1645968144698,0.00625392,2820.2,2819.7,3.5]
[1645968144899,0.66817462,2820.3,2819.5,4.6813]
[1645968145102,0.66913462,2820.2,2819.5,4.6813]
[1645968145299,0.66817462,2819.9,2819.5,4.6813]
[1645968145497,0.66817462,2819.9,2819.5,0.5]
[1645968145719,0.66817462,2819.9,2819.3,0.54173093]
[1645968145720,0.66817462,2820.0,2819.3,0.54173093]
[1645968145921,1.80094921,2819.9,2819.3,0.54173093]
[1645968146123,1.80094921,2819.9,2819.0,6.6375486]
[1645968146319,1.80094921,2819.9,2818.9,1.1653]
[1645968146320,0.66817462,2819.6,2818.9,1.1653]
[1645968146518,0.66817462,2819.4,2818.9,1.1653]
[1645968146916,0.66817462,2819.4,2818.6,2.8043]
[1645968147516,0.66817462,2819.5,2818.6,2.8043]
[1645968147717,0.00600072,2819.1,2818.6,2.8043]
[1645968148524,0.00096,2819.2,2818.6,2.8043]
[1645968148725,0.00600091,2819.0,2818.6,2.8043]
[1645968148922,0.00600091,2819.0,2818.6,3.5]
[1645968149379,0.00600091,2819.0,2818.7,10.77]
[1645968149565,0.00600091,2819.0,2818.6,3.8526]
[1645968149766,0.66817462,2819.5,2818.6,3.5]
[1645968149967,0.00601813,2819.0,2818.6,3.5]
[1645968150267,0.00601813,2819.0,2818.5,3.6353]
[1645968150875,0.00096,2819.4,2818.5,3.6353]
[1645968151175,0.00601826,2818.9,2818.6,3.5]
[1645968151572,0.00601826,2818.9,2818.5,3.6353]
[1645968152175,1.10967794,2819.1,2818.5,3.6353]
[1645968152477,1.10967794,2819.1,2818.4,4.0146]
[1645968152478,0.00601832,2818.8,2818.4,4.0146]
[1645968153313,0.00096,2819.3,2818.4,4.0146]
[1645968153513,0.00601729,2818.7,2818.4,4.0146]
[1645968154315,0.00601729,2818.7,2818.5,0.1419]
[1645968154515,0.00096,2819.3,2818.5,0.1419]
[1645968154714,1.03419658,2819.2,2818.5,0.1419]
[1645968154915,0.00601735,2818.7,2818.5,0.1419]
[1645968155718,0.00096,2819.1,2818.5,0.1419]
[1645968155917,0.00601729,2818.7,2818.4,4.0146]
[1645968156957,0.00096,2819.1,2818.4,4.0146]
[1645968157161,0.00601744,2818.7,2818.4,4.0146]
[1645968157358,0.00601744,2818.7,2818.4,14.7846]
[1645968157560,0.00601744,2818.7,2818.4,4.0146]
[1645968157959,0.00601744,2818.7,2818.5,10.77]
[1645968158167,0.66913462,2819.2,2818.4,4.0146]
[1645968158464,0.00601744,2818.7,2818.4,4.0146]
[1645968158671,0.00601744,2818.7,2818.4,14.7846]
[1645968159270,0.66817462,2819.2,2818.5,0.1419]
[1645968159466,0.66817462,2819.3,2818.5,0.1419]
[1645968159667,0.00570102,2818.7,2818.5,0.1419]
[1645968160282,0.00570102,2818.7,2818.4,4.0146]
[1645968160474,0.66817462,2818.8,2818.2,4.1896]
[1645968160720,1.41867125,2818.4,2818.0,2.9023]
[1645968160919,1.41867125,2818.4,2817.9,1.1295]
[1645968161120,1.41867125,2818.4,2817.8,1.8342]
[1645968161320,1.41867125,2818.4,2817.8,0.5919]
[1645968161522,1.41867125,2818.4,2817.8,0.1419]
[1645968161728,1.41867125,2818.4,2817.8,0.5915]
[1645968162025,1.42437243,2818.4,2817.8,0.5915]
[1645968162223,1.42437243,2818.4,2817.8,0.4496]
[1645968162622,0.84344684,2818.3,2817.8,0.4496]
[1645968163025,0.84344684,2818.3,2817.7,7.0961]
[1645968163226,0.84344684,2818.3,2818.2,0.4496]
[1645968164236,4.34344684,2818.3,2818.2,0.4496]
[1645968164459,1.51162146,2818.3,2818.2,0.4496]
[1645968164862,1.51162146,2818.3,2817.7,7.0961]
[1645968165462,1.51162146,2818.2,2817.7,7.0961]
[1645968165665,0.84344684,2818.1,2817.7,7.0961]
[1645968165863,0.84344684,2818.0,2817.7,7.0961]
[1645968166064,0.84344684,2817.9,2817.7,7.0961]
[1645968166265,0.84344684,2817.8,2817.7,7.0961]
[1645968166467,0.66817462,2818.2,2817.7,7.0961]
[1645968168109,0.81007462,2818.2,2817.7,7.0961]
[1645968168312,1.51162146,2818.1,2817.7,7.0961]
[1645968168712,0.84344684,2818.0,2817.7,7.0961]
[1645968168913,0.84344684,2817.9,2817.7,7.0961]
[1645968169116,0.84344684,2817.8,2817.7,7.0961]
[1645968169314,0.66817462,2817.8,2817.7,7.0961]
[1645968169518,1.51162146,2817.8,2817.7,7.0961]
[1645968169913,0.66817462,2817.8,2817.7,7.0961]
[1645968170212,1.93614404,2817.8,2817.7,7.0961]
[1645968170412,2.77895545,2817.8,2817.7,7.0961]
[1645968170615,2.11141626,2817.8,2817.7,7.0961]
[1645968170813,2.779005,2817.8,2817.7,7.0961]
[1645968171616,2.779005,2817.8,2817.7,5.49502072]
[1645968171867,2.11141626,2817.8,2817.7,5.49502072]
[1645968174272,0.84344684,2817.8,2817.7,5.49502072]
[1645968175269,1.92615635,2817.8,2817.7,5.49502072]
[1645968179212,0.84344684,2817.8,2817.7,5.49502072]
[1645968187864,1.51103558,2817.8,2817.7,5.49502072]
[1645968188272,0.84344684,2817.8,2817.7,5.49502072]
[1645968188470,0.98534684,2817.8,2817.7,5.49502072]
[1645968188670,0.84344684,2817.8,2817.7,5.49502072]
[1645968191619,0.84344684,2817.8,2817.7,3.89418673]
[1645968199318,1.51103558,2817.8,2817.7,3.89418673]
[1645968199518,0.84344684,2817.8,2817.7,3.89418673]
[1645968199917,0.98534684,2817.8,2817.7,3.89418673]
[1645968200319,0.84344684,2817.8,2817.7,3.89418673]
[1645968201127,0.84344684,2817.8,2817.7,1.49259303]
[1645968201723,1.73692708,2817.8,2817.7,1.49259303]
[1645968201958,0.84344684,2817.8,2817.7,1.49259303]
[1645968202162,0.89348292,2817.8,2817.7,1.49259303]
[1645968202457,1.73692976,2817.8,2817.7,1.49259303]
[1645968202660,0.84344684,2817.8,2817.7,1.49259303]
[1645968203463,1.73751016,2817.8,2817.7,1.49259303]
[1645968203664,0.84344684,2817.8,2817.7,1.49259303]
[1645968204364,0.89484414,2817.8,2817.7,1.49259303]
[1645968204564,1.73829098,2817.8,2817.7,1.49259303]
[1645968204965,0.84344684,2817.8,2817.7,1.49259303]
[1645968205363,0.84344684,2817.9,2817.7,1.49259303]
[1645968205622,1.7392294,2817.8,2817.7,1.49259303]
[1645968205819,0.84344684,2817.8,2817.7,1.49259303]
[1645968206421,0.89582543,2817.8,2817.7,1.49259303]
[1645968206722,0.84344684,2817.8,2817.7,1.49259303]
[1645968206925,1.34060264,2817.8,2817.7,1.49259303]
[1645968207121,2.18404948,2817.8,2817.7,1.49259303]
[1645968208327,0.84344684,2817.8,2817.7,1.49259303]
[1645968209133,1.74028952,2817.8,2817.7,1.49259303]
[1645968209383,0.84344684,2817.8,2817.7,1.49259303]
[1645968209571,1.74028952,2817.8,2817.7,1.49259303]
[1645968210374,0.84344684,2817.8,2817.7,1.49259303]
[1645968211373,1.74028952,2817.8,2817.7,1.49259303]
[1645968211574,1.74028952,2817.8,2817.2,1.26618947]
[1645968211575,1.42999741,2817.5,2817.2,1.15794171]
[1645968211776,1.42999741,2817.5,2817.3,0.78156991]
[1645968211777,0.84344684,2817.4,2817.3,0.78156991]
[1645968212374,0.84344684,2817.4,2817.1,0.78156991]
[1645968212675,0.84344684,2817.3,2817.1,0.78156991]
[1645968212977,1.51626116,2817.3,2817.2,0.78156991]
[1645968213222,1.51626116,2817.3,2816.8,0.4736915]
[1645968213425,0.84344684,2817.2,2816.9,0.7816787]
[1645968213621,0.84344684,2817.1,2816.9,0.7816787]
[1645968213820,0.84344684,2817.0,2816.9,0.7816787]
[1645968215723,1.87643534,2817.0,2816.9,0.7816787]
[1645968216220,0.84344684,2817.0,2816.9,0.7816787]
[1645968218269,0.84344684,2817.0,2816.8,0.7816787]
[1645968218469,0.84344684,2816.9,2816.8,0.7816787]
[1645968220929,0.84344684,2816.9,2816.7,0.00602269]
[1645968221130,1.25734367,2817.1,2816.8,0.7816787]
[1645968221334,0.71420329,2817.0,2816.8,0.7816787]
[1645968222128,0.71420329,2817.0,2816.9,0.7816787]
[1645968222531,0.71420329,2817.0,2816.8,0.7816787]
[1645968223335,0.71420329,2817.0,2816.9,0.7816787]
[1645968223536,0.71420329,2817.0,2816.8,0.7816787]
[1645968224562,0.71420329,2817.0,2816.9,0.7816787]
[1645968224962,0.71420329,2817.0,2816.8,0.7816787]
[1645968225564,0.71420329,2817.0,2816.5,0.7816787]
[1645968225765,0.71420329,2817.0,2816.7,0.00602204]
[1645968225965,0.71420329,2817.0,2816.8,0.7816787]
[1645968226767,0.71420329,2817.0,2816.9,0.7816787]
[1645968227168,0.71420329,2817.0,2816.8,0.7816787]
[1645968227370,0.67281432,2817.2,2816.9,0.7816787]
[1645968227570,0.25,2817.4,2817.0,0.7816787]
[1645968227571,1.38656075,2817.3,2817.0,0.7816787]
[1645968227772,1.38656075,2817.3,2817.1,0.7816787]
[1645968227972,2.55647956,2817.3,2816.7,0.4496]
[1645968228229,0.71374643,2817.2,2816.8,0.7815173]
[1645968228431,0.71374643,2817.1,2816.8,15.4041173]
[1645968228629,0.25,2817.4,2817.0,10.77]
[1645968228828,0.70567874,2817.3,2817.1,4.2815173]
[1645968229029,0.70567874,2817.3,2817.2,4.2815173]
[1645968229233,0.70567874,2817.3,2817.2,0.7815173]
[1645968229630,0.70567874,2817.3,2817.1,0.7815173]
[1645968229828,0.70567874,2817.3,2817.2,0.7815173]
[1645968230433,0.70567874,2817.3,2816.9,0.7815173]
[1645968230836,2.06703027,2817.3,2817.0,0.7815173]
[1645968231035,0.70567874,2817.2,2817.1,0.6315173]
[1645968231236,0.70567874,2817.2,2816.7,0.47969872]
[1645968231435,0.70567874,2817.2,2816.7,0.4496]
[1645968231883,0.70567874,2817.2,2816.7,0.45561967]
[1645968232071,0.70567874,2817.2,2816.7,0.59751967]
[1645968232272,0.70567874,2817.2,2816.7,0.45561967]
[1645968232672,0.70567874,2817.2,2816.7,0.4496]
[1645968232876,0.70567874,2817.2,2816.7,0.45565367]
[1645968233878,0.70567874,2817.2,2816.7,0.4496]
[1645968234076,0.70567874,2817.2,2816.7,0.45565367]
[1645968235078,0.70567874,2817.2,2816.7,0.4496]
[1645968235282,0.70567874,2817.2,2816.7,0.45565367]
[1645968235482,0.67281432,2817.3,2816.7,0.45565367]
[1645968235723,0.25,2817.4,2816.7,0.45565367]
[1645968235724,0.92281432,2817.4,2816.7,0.45565367]
[1645968235923,0.92281432,2817.4,2816.7,11.22565367]
[1645968236222,0.92281432,2817.4,2816.7,0.4496]
[1645968236422,1.74284306,2817.3,2816.7,0.45561727]
[1645968236623,1.07002874,2817.3,2816.7,0.45561727]
[1645968236824,0.92281432,2817.4,2816.8,3.5]
[1645968237026,0.92281432,2817.4,2816.7,0.45561727]
[1645968237223,0.92281432,2817.4,2816.8,3.5]
[1645968238024,0.92281432,2817.4,2816.7,1.78155455]
[1645968238427,0.92281432,2817.4,2816.8,3.5]
[1645968238629,0.67281432,2817.4,2816.7,1.77735242]
[1645968238828,0.25,2817.3,2816.7,1.78336969]
[1645968239028,0.25,2817.3,2816.8,3.5]
[1645968240277,0.25,2817.3,2816.9,10.77]
[1645968240474,0.25,2817.3,2817.0,14.27]
[1645968240674,0.25,2817.3,2817.0,14.6226]
[1645968241177,0.25,2817.3,2817.0,15.74554026]
[1645968242477,0.67281432,2817.7,2817.3,0.0128824]
[1645968242678,0.25,2817.6,2817.3,0.0128824]
[1645968242978,0.92281432,2817.6,2817.3,0.0128824]
[1645968243227,0.25,2817.6,2817.3,0.0128824]
[1645968251124,0.71225554,2817.5,2817.4,11.55185894]
[1645968251321,0.71225554,2817.5,2817.4,15.05185894]
[1645968251919,0.71225554,2817.5,2817.4,22.15045894]
[1645968252121,0.67281432,2818.1,2817.5,16.27]
[1645968252323,0.25,2817.8,2817.7,10.77]
[1645968252526,0.25,2817.8,2817.7,14.27]
[1645968254766,0.67883326,2818.4,2818.3,1.13796856]
[1645968254969,0.00601894,2818.4,2818.3,1.13796856]
[1645968255273,0.00601894,2818.4,2818.3,10.77]
[1645968255467,0.67281432,2818.5,2818.3,10.77]
[1645968255669,0.67883367,2818.5,2818.3,10.77]
[1645968256069,0.67883367,2818.5,2818.4,10.77]
[1645968256271,0.67883367,2818.5,2818.4,11.81442942]
[1645968256770,0.67281432,2818.7,2818.4,11.81442942]
[1645968256970,0.00601922,2818.6,2818.4,11.81442942]
[1645968257673,0.00601922,2818.6,2818.4,10.77]
[1645968257878,0.67281432,2818.8,2818.4,10.77]
[1645968258124,0.00602671,2818.6,2818.4,10.77]
[1645968258330,0.00602671,2818.6,2818.5,3.5]
[1645968258528,0.00602671,2818.6,2818.5,14.27]
[1645968259129,0.00096,2819.0,2818.5,14.27]
[1645968259330,0.67281432,2819.1,2818.5,14.27]
[1645968259528,0.67281432,2819.1,2818.5,15.28497805]
[1645968260333,0.67377432,2819.2,2818.5,15.28497805]
[1645968260536,0.25,2819.3,2818.5,16.70122779]
[1645968260537,0.00602391,2818.9,2818.5,16.70122779]
[1645968260732,0.00602391,2818.9,2818.6,11.1226]
[1645968260930,0.00602391,2818.9,2818.8,10.77]
[1645968261132,0.00602391,2818.9,2818.8,14.48657132]
[1645968261531,0.67281432,2819.4,2818.8,14.48657132]
[1645968261734,0.67377432,2819.4,2818.8,14.27]
[1645968261989,0.67281432,2819.4,2818.8,14.27]
[1645968262591,0.67281432,2819.4,2818.8,12.66989223]
[1645968262790,0.67281432,2819.4,2818.8,10.15727023]
[1645968263594,0.67281432,2819.4,2818.8,11.757378]
[1645968265199,1.30777888,2819.3,2818.8,0.987378]
[1645968265401,1.30777888,2819.3,2818.8,11.757378]
[1645968265623,0.006122,2819.2,2818.8,11.757378]
[1645968266025,0.006122,2819.2,2818.8,0.987378]
[1645968266222,1.30777888,2819.3,2818.9,10.77]
[1645968266422,1.30777888,2819.3,2818.8,0.987378]
[1645968266624,0.00580224,2819.1,2818.8,0.987378]
[1645968267430,0.67281432,2819.5,2818.9,10.77]
[1645968267628,0.00096,2819.4,2818.9,12.07522231]
[1645968267827,0.0058023,2819.1,2818.9,12.07522231]
[1645968268336,0.0058023,2819.1,2818.9,10.77]
[1645968268729,0.00096,2819.6,2818.9,10.77]
[1645968268935,0.67281432,2819.4,2818.8,0.537778]
[1645968269131,3.5,2819.3,2818.8,0.537778]
[1645968269376,0.67281432,2819.3,2818.1,11.0624927]
[1645968269569,0.67281432,2819.3,2818.1,8.284]
[1645968269570,0.00096,2819.2,2818.1,8.284]
[1645968269769,0.00096,2819.2,2818.1,8.46760656]
[1645968269969,0.00096,2819.2,2818.2,10.77]
[1645968270569,0.00096,2819.2,2818.1,8.284]
[1645968270570,1.3078707,2818.5,2818.1,8.284]
[1645968270874,0.00096,2819.2,2818.0,0.97377107]
[1645968270875,0.67377432,2819.2,2818.0,0.97377107]
[1645968271069,1.02541432,2819.2,2818.0,14.80297107]
[1645968271270,0.00096,2819.1,2818.0,16.03087107]
[1645968271469,0.00601318,2818.4,2818.0,16.03087107]
[1645968272273,0.00096,2819.1,2818.0,16.03087107]
[1645968272492,0.00612586,2818.4,2818.0,16.03087107]
[1645968272674,0.00612586,2818.4,2818.0,12.97167107]
[1645968273429,1.0272532,2818.7,2818.0,12.97167107]
[1645968273624,0.65577136,2818.6,2818.0,12.97167107]
[1645968273825,0.00612586,2818.4,2818.0,12.97167107]
[1645968274628,1.0272532,2818.7,2818.0,12.97167107]
[1645968274829,0.65582279,2818.6,2818.0,1.6775]
[1645968275030,0.00612586,2818.4,2818.0,1.6775]
[1645968275330,0.65582279,2818.3,2818.0,1.6775]
[1645968275530,0.65582279,2818.3,2818.0,0.4496]
[1645968275934,1.0272532,2818.7,2818.0,0.4496]
[1645968276130,0.00600177,2818.4,2818.0,0.4496]
[1645968277170,1.0272532,2818.7,2818.0,11.2196]
[1645968277369,0.00600181,2818.4,2818.0,11.2196]
[1645968277573,0.00600181,2818.4,2818.1,11.967]
[1645968277768,0.00600181,2818.4,2818.1,1.197]
[1645968278373,1.02722429,2818.7,2818.1,1.197]
[1645968278577,0.00600185,2818.4,2818.1,1.197]
[1645968279473,1.02722429,2818.7,2818.1,1.197]
[1645968279874,0.00600185,2818.4,2818.1,1.197]
[1645968280718,1.02722429,2818.7,2818.1,1.197]
[1645968281123,0.00601023,2818.4,2818.1,1.197]
[1645968281921,1.02722429,2818.7,2818.1,1.197]
[1645968282121,1.02722429,2818.7,2818.0,0.4496]
[1645968282324,0.00601023,2818.4,2818.0,0.4496]
[1645968282524,0.39576456,2817.7,2817.6,1.1588]
[1645968282720,0.39576456,2817.7,2817.5,11.77]
[1645968283120,0.39576456,2817.7,2817.5,1.0]
[1645968283926,0.39576456,2817.7,2817.4,7.0986]
[1645968289032,0.39576456,2817.7,2817.4,8.3731755]
[1645968289329,0.39576456,2817.7,2817.5,3.5]
[1645968289927,0.39576456,2817.7,2817.5,14.27]
[1645968290533,0.39576456,2817.7,2817.4,9.3731755]
[1645968290730,0.39576456,2817.7,2817.5,3.5]
[1645968290932,0.39576456,2817.7,2817.4,9.3731755]
[1645968291130,0.39576456,2817.7,2817.4,8.0986]
[1645968291330,0.39576456,2817.7,2817.4,7.0986]
[1645968293376,0.39576456,2817.7,2817.4,7.5482]
[1645968295822,0.65254435,2817.6,2817.4,7.5482]
[1645968297624,0.65254435,2817.6,2817.4,7.54669]
[1645968298025,0.65254435,2817.6,2817.5,0.83680909]
[1645968298433,0.39576456,2817.7,2817.5,0.83680909]
[1645968298631,0.39576456,2817.7,2817.5,4.33680909]
[1645968298833,0.39576456,2817.7,2817.6,0.83680909]
[1645968299031,0.39576456,2817.7,2817.6,4.33680909]
[1645968299032,1.04816894,2817.7,2817.6,4.33680909]
[1645968299881,0.39576456,2817.7,2817.6,4.33680909]
[1645968300078,0.39576456,2817.7,2817.6,15.10680909]
[1645968300680,0.39576456,2817.7,2817.6,4.33680909]
[1645968301280,0.39576456,2817.7,2817.6,15.10680909]
[1645968301879,0.00601696,2818.4,2817.7,3.0]
[1645968302084,0.641571,2818.3,2817.8,4.33680909]
[1645968302279,0.641571,2818.3,2817.8,3.5]
[1645968302779,1.60053735,2817.7,2817.6,3.948]
[1645968302979,1.60053735,2817.7,2817.6,4.80270905]
[1645968303422,1.60053735,2817.7,2817.6,15.57270905]
[1645968304224,1.60053735,2817.7,2817.6,16.72635777]
[1645968304423,1.60053735,2817.7,2817.6,4.80270905]
[1645968305226,1.60053735,2817.7,2817.6,15.57270905]
[1645968305624,1.60053735,2817.7,2817.6,4.80270905]
[1645968306426,1.60053735,2817.7,2817.6,15.57270905]
[1645968306876,0.00570536,2818.4,2817.7,15.77]
[1645968307077,0.6048045,2818.3,2817.9,10.77]
[1645968307287,0.6048045,2818.3,2818.0,3.5]
[1645968307481,0.00570566,2818.4,2817.8,1.02925]
[1645968307679,0.6048045,2818.3,2817.9,0.88490023]
[1645968308482,0.6048045,2818.3,2817.9,1.88490023]
[1645968308682,0.6048045,2818.2,2818.0,0.88490023]
[1645968308884,0.0057057,2818.4,2818.0,0.88490023]
[1645968308885,0.6048045,2818.1,2818.0,0.88490023]
[1645968309083,0.6048045,2818.3,2818.0,4.38490023]
[1645968309284,0.6048045,2818.3,2818.1,0.88490023]
[1645968309886,0.6048045,2818.2,2818.1,0.88490023]
[1645968310283,0.6048045,2818.3,2818.1,0.88490023]
[1645968310485,0.6048045,2818.3,2818.2,3.5]
[1645968310717,0.6048045,2818.3,2818.2,0.88490023]
[1645968311117,0.00573673,2818.4,2818.1,0.88490023]
[1645968311316,0.6048045,2818.3,2818.2,0.88490023]
[1645968311718,0.6048045,2818.3,2818.1,0.88490023]
[1645968311917,0.6048045,2818.3,2818.2,0.88490023]
[1645968312319,0.00573673,2818.4,2818.1,0.88490023]
[1645968312525,0.6048045,2818.3,2818.2,0.88490023]
[1645968312821,0.6048045,2818.3,2818.1,0.88490023]
[1645968313021,0.6048045,2818.3,2818.2,4.38490023]
[1645968313225,0.00096,2818.8,2818.3,17.77]
[1645968313429,0.00096,2819.0,2818.4,14.4119]
[1645968313623,0.67281432,2819.2,2818.4,14.4119]
[1645968313823,0.67281432,2819.2,2818.4,14.27]
[1645968313824,0.00096,2819.1,2818.4,14.27]
[1645968314023,0.67281432,2819.2,2818.4,14.27]
[1645968314224,1.8375552,2819.2,2818.4,14.27]
[1645968314475,1.8375552,2819.2,2818.5,0.1419]
[1645968314677,0.00573304,2818.9,2818.5,0.1419]
[1645968315079,0.00573304,2818.9,2818.5,10.9119]
[1645968315278,0.00573304,2818.9,2818.7,10.77]
[1645968315478,0.00573304,2818.9,2818.8,15.4119]
[1645968315681,0.00096,2819.4,2818.8,15.27]
[1645968315879,0.00573304,2818.9,2818.8,15.27]
[1645968316678,0.00573304,2818.9,2818.8,15.7645]
[1645968316880,0.67281432,2819.7,2819.0,11.1226]
[1645968316881,0.00096,2819.7,2819.0,11.1226]
[1645968317078,0.67377432,2819.9,2819.3,11.6568769]
[1645968317281,0.00096,2819.7,2819.4,14.27]
[1645968317479,0.67281432,2819.9,2819.4,14.27]
[1645968317685,1.8932092,2820.0,2819.4,14.27]
[1645968318123,1.22039488,2820.0,2819.5,11.77]
[1645968318327,0.00573216,2819.8,2819.5,11.77]
[1645968318527,0.00573216,2819.8,2819.6,3.5]
[1645968319330,0.00096,2820.1,2819.5,11.77]
[1645968319528,0.00573216,2819.8,2819.5,11.77]
[1645968319728,0.00573216,2819.8,2819.5,1.0]
[1645968320429,0.00096,2820.1,2819.5,1.0]
[1645968320630,0.00573215,2819.8,2819.5,1.0]
[1645968321233,0.25573215,2819.8,2819.5,1.0]
[1645968321635,0.25,2819.8,2819.5,1.0]
[1645968321885,0.25573215,2819.8,2819.5,1.0]
[1645968322678,0.25573215,2819.8,2819.5,0.08861902]
[1645968322882,0.25,2819.8,2819.5,0.08861902]
[1645968323184,1.42720921,2819.8,2819.5,0.08861902]
[1645968324084,3.5,2819.7,2819.5,0.08861902]
[1645968324282,2.09429138,2819.8,2819.4,0.448]
[1645968324283,2.10002354,2819.8,2819.4,0.448]
[1645968324483,2.10002354,2819.8,2819.2,0.088]
[1645968324684,0.35356,2819.7,2818.4,22.1132]
[1645968324883,0.35356,2819.7,2818.4,22.2004]
[1645968325083,0.00096,2819.7,2818.7,0.88708]
[1645968325387,0.14276,2819.7,2818.7,0.88708]
[1645968325625,0.00573293,2819.2,2818.7,0.88708]
[1645968325822,1.38323322,2818.9,2818.7,0.88708]
[1645968326029,1.38323322,2818.9,2818.3,0.9887812]
[1645968326327,1.38323322,2818.9,2818.3,0.448]
[1645968326928,0.2557335,2818.7,2818.3,0.448]
[1645968327627,0.25,2818.7,2818.3,0.448]
[1645968328030,0.00573366,2818.6,2818.3,0.448]
[1645968328832,0.25,2818.7,2817.9,1.2636]
[1645968329035,0.00573372,2818.6,2817.9,12.0336]
[1645968329872,0.00573372,2818.6,2817.9,1.2636]
[1645968330072,0.25,2818.7,2817.9,1.2636]
[1645968330274,0.00573388,2818.4,2817.9,1.2636]
[1645968330473,0.00573388,2818.4,2817.9,12.0336]
[1645968331078,0.00573388,2818.4,2818.3,0.0872]
[1645968331277,0.25,2818.7,2818.3,0.0872]
[1645968331477,0.00573383,2818.4,2818.3,0.0872]
[1645968332475,0.25,2818.7,2818.3,0.0872]
[1645968332677,0.00573388,2818.5,2818.3,0.0872]
[1645968333726,0.25,2818.7,2818.3,0.0872]
[1645968334026,0.00573382,2818.5,2818.3,0.0872]
[1645968334825,0.25,2818.7,2818.3,0.0872]
[1645968335025,0.00573382,2818.5,2818.3,0.0872]
[1645968336027,0.00573382,2818.5,2817.9,1.1764]
[1645968336028,0.25,2818.7,2817.9,1.1764]
[1645968336229,0.25,2818.7,2818.0,0.91112311]
[1645968336230,0.00573382,2818.5,2818.0,0.91112311]
[1645968336429,0.57567822,2818.4,2818.0,0.91112311]
[1645968337489,0.57567822,2818.4,2817.9,0.0872]
[1645968337490,0.57567822,2818.3,2817.9,0.0872]
[1645968338291,3.5,2818.2,2817.9,0.0872]
[1645968338495,6.41348222,2818.7,2817.9,0.0872]
[1645968338496,0.57567822,2818.1,2817.9,0.0872]
[1645968338695,1.78523323,2818.0,2817.9,0.0872]
[1645968339895,1.20955501,2818.0,2817.9,0.0872]
[1645968340093,0.00573368,2818.4,2817.9,0.0872]
[1645968340296,0.57619928,2818.3,2817.9,0.0872]
[1645968341229,0.57619928,2818.2,2817.9,0.0872]
[1645968341622,0.57619928,2818.3,2817.9,0.0872]
[1645968342222,0.57619928,2818.2,2818.0,0.91221501]
[1645968342423,1.17648006,2818.1,2818.0,0.91221501]
[1645968342723,1.17648006,2818.1,2818.0,0.91221465]
[1645968342924,0.00573381,2818.4,2818.0,0.91221465]
[1645968343123,0.57664141,2818.3,2818.0,0.91221465]
[1645968343528,0.57664141,2818.2,2817.9,0.0872]
[1645968343928,0.00573389,2818.4,2817.9,0.0872]
[1645968344131,1.04010688,2818.2,2817.9,0.0872]
[1645968344385,0.2359633,2818.1,2818.0,0.91255772]
[1645968345378,0.00573378,2818.4,2818.0,0.91255772]
[1645968345581,0.25,2818.7,2817.9,0.0872]
[1645968345979,0.00573376,2818.4,2817.9,0.0872]
[1645968346879,0.25,2818.7,2817.9,0.0872]
[1645968347178,0.00573384,2818.4,2817.9,0.0872]
[1645968347980,0.3919,2818.7,2817.9,0.0872]
[1645968348234,0.00573384,2818.4,2817.9,0.0872]
[1645968348632,1.15498492,2818.2,2817.9,0.0872]
[1645968350235,0.00573377,2818.4,2817.9,0.0872]
[1645968350535,0.3919,2818.7,2817.9,0.0872]
[1645968350738,0.00573377,2818.4,2817.9,0.0872]
[1645968351737,1.06471432,2818.7,2817.9,0.0872]
[1645968351981,0.00573384,2818.4,2817.9,0.0872]
[1645968352778,1.39248096,2818.4,2817.9,0.0872]
[1645968352980,1.38674712,2818.4,2817.9,0.0872]
[1645968353187,1.39248097,2818.4,2817.9,0.0872]
[1645968353987,1.38674712,2818.4,2817.9,0.0872]
[1645968354386,1.39248097,2818.4,2817.9,0.0872]
[1645968355186,1.38674712,2818.4,2817.9,0.0872]
[1645968355637,1.39248097,2818.4,2817.9,0.0872]
[1645968356040,1.39248097,2818.4,2817.9,0.0203016]
[1645968356442,1.38674712,2818.4,2817.9,0.0203016]
[1645968356644,1.38674712,2818.4,2817.7,0.448]
[1645968356645,4.9961679,2818.0,2817.3,7.36]
[1645968356848,0.67281432,2817.8,2817.3,7.38294465]
[1645968357041,5.81088222,2817.8,2817.3,0.02294465]
[1645968357242,0.67281432,2817.6,2817.3,0.02294465]
[1645968357640,1.5682707,2817.5,2816.4,0.03181514]
[1645968357841,1.3575707,2817.5,2816.8,0.5]
[1645968358147,0.25,2817.3,2816.8,0.5]
[1645968360786,0.25,2817.3,2816.8,0.4]
[1645968360986,0.25,2817.3,2816.9,1.33706234]
[1645968361187,0.25,2817.3,2816.8,0.4]